fUSD/lending_fUSD_20240101
["ID","MTS","AMOUNT","RATE_DAILY","PERIOD"]
[309783194,1704117067209,-500.0,0.00037999,7]
[309783195,1704117067218,-241.60933508,0.00037999,7]
[309783196,1704117067230,-458.04091531,0.00037999,7]
[309783197,1704117067239,-309.22357906,0.00037999,7]
[309783198,1704117067249,-500.0,0.00037999,7]
[309783199,1704117067260,-500.0,0.00037999,7]
[309783200,1704117067269,-999.75594326,0.00038,4]
[309783201,1704117067279,-1008.72126949,0.00038,2]
[309783202,1704117067289,-11410.83999676,0.00038,4]
[309783203,1704117067299,-200.0,0.00038,15]
[309783204,1704117067309,-11464.1,0.00038,2]
[309783205,1704117067319,-2000.0,0.00038,2]
[309783206,1704117067329,-500.0,0.00038082,2]
[309783207,1704117067340,-500.0,0.00038082,2]
[309783208,1704117067350,-500.0,0.00038082,2]
[309783209,1704117067359,-763.87,0.00038082,2]
[309783210,1704117067369,-638.97,0.00038082,2]
[309783211,1704117067378,-500.0,0.00038082,2]
[309783212,1704117067388,-1870.25,0.00038082,2]
[309783213,1704117067397,-428.39,0.00038082,2]
[309783214,1704117067407,-500.0,0.00038082,2]
[309783215,1704117067416,-500.0,0.00038082,2]
[309783216,1704117067426,-500.0,0.00038082,2]
[309783217,1704117067435,-500.0,0.00038082,2]
[309783218,1704117067445,-500.0,0.00038082,2]
[309783219,1704117067454,-543.03,0.00038082,2]
[309783220,1704117067464,-752.72,0.00038082,2]
[309783221,1704117067473,-172.87446819,0.00038082,2]
[309783222,1704117067483,-500.0,0.00038082,2]
[309783223,1704117067492,-500.0,0.00038082,2]
[309783224,1704117067502,-500.0,0.00038082,2]
[309783225,1704117067512,-500.0,0.00038082,2]
[309783226,1704117067526,-500.0,0.00038082,2]
[309783227,1704117067535,-500.0,0.00038082,2]
[309783228,1704117067545,-732.99,0.00038082,2]
[309783229,1704117067561,-500.0,0.00038082,2]
[309783230,1704117067574,-500.0,0.00038082,2]
[309783231,1704117067587,-500.0,0.00038082,2]
[309783232,1704117067599,-1348.23,0.00038082,2]
[309783233,1704117067609,-544.7,0.00038082,2]
[309783234,1704117067620,-500.0,0.00038082,5]
[309783235,1704117067629,-500.0,0.00038082,2]
[309783236,1704117067643,-500.0,0.00038082,2]
[309783237,1704117067656,-320.39973593,0.00038082,2]
[309783238,1704117067666,-500.0,0.00038082,2]
[309783239,1704117067676,-500.0,0.00038082,2]
[309783240,1704117067686,-500.0,0.00038082,2]
[309783241,1704117067696,-1292.27,0.00038082,2]
[309783242,1704117067706,-518.93,0.00038082,2]
[309783243,1704117067717,-500.0,0.00038082,2]
[309783244,1704117067728,-500.0,0.00038082,2]
[309783245,1704117067737,-229.224196,0.00038096,2]
[309783246,1704117067748,-524.258077,0.00038096,2]
[309783247,1704117067758,-333.33333,0.00038098,8]
[309783248,1704117067768,-153.92,0.00038107,2]
[309783249,1704117067779,-294.51798002,0.00038173,8]
[309783250,1704117067789,-299.43893434,0.00038174,10]
[309783251,1704117067804,-299.4389342,0.00038174,10]
[309783252,1704117067820,-333.33333,0.00038198,8]
[309783253,1704117067829,-1715.94873885,0.00038256,10]
[309783254,1704117067849,-1078.75224406,0.00038256,8]
[309783255,1704117067859,-6378.91233146,0.00038256,10]
[309783256,1704117067869,-1836.87722542,0.00038256,7]
[309783257,1704117067879,-183.68772254,0.00038256,4]
[309783258,1704117067889,-3637.34788158,0.00038256,9]
[309783259,1704117067898,-954.07970767,0.00038256,7]
[309783260,1704117067907,-1037.97981972,0.00038269,3]
[309783261,1704117067917,-1130.41827148,0.00038269,3]
[309783262,1704117067927,-1324.84808245,0.00038269,3]
[309783263,1704117067936,-333.33333,0.00038298,8]
[309783264,1704117067946,-224.59039204,0.00038338,2]
[309783265,1704117067955,-573.33036416,0.00038356,2]
[309783266,1704117067966,-500.0,0.00038356,2]
[309783267,1704117067975,-500.0,0.00038356,2]
[309783268,1704117067984,-541.13693463,0.00038356,2]
[309783269,1704117067994,-763.87,0.00038356,2]
[309783270,1704117068004,-1516.12,0.00038356,2]
[309783271,1704117068013,-1516.12,0.00038356,2]
[309783272,1704117068023,-1516.12,0.00038356,2]
[309783273,1704117068033,-1516.12,0.00038356,2]
[309783274,1704117068043,-1516.12,0.00038356,2]
[309783275,1704117068052,-1516.12,0.00038356,2]
[309783276,1704117068062,-1516.12,0.00038356,2]
[309783277,1704117068072,-1516.12,0.00038356,2]
[309783278,1704117068082,-1516.12,0.00038356,2]
[309783279,1704117068092,-1516.12,0.00038356,2]
[309783280,1704117068102,-1516.12,0.00038356,2]
[309783281,1704117068111,-1516.12,0.00038356,2]
[309783282,1704117068121,-1516.12,0.00038356,2]
[309783283,1704117068132,-1516.12,0.00038356,2]
[309783284,1704117068141,-1516.12,0.00038356,2]
[309783285,1704117068150,-1516.12,0.00038356,2]
[309783286,1704117068160,-1516.12,0.00038356,2]
[309783287,1704117068170,-1516.12,0.00038356,2]
[309783288,1704117068179,-1516.12,0.00038356,2]
[309783289,1704117068189,-1516.12,0.00038356,2]
[309783290,1704117068198,-1516.12,0.00038356,2]
[309783291,1704117068208,-1516.12,0.00038356,2]
[309783292,1704117068218,-1516.12,0.00038356,2]
[309783293,1704117068227,-1516.14,0.00038356,2]
[309783294,1704117068237,-638.97,0.00038356,2]
[309783295,1704117068247,-500.0,0.00038356,2]
[309783296,1704117068257,-1870.25,0.00038356,2]
[309783297,1704117068266,-500.0,0.00038356,2]
[309783298,1704117068276,-500.0,0.00038356,2]
[309783299,1704117068285,-500.0,0.00038356,2]
[309783300,1704117068294,-500.0,0.00038356,2]
[309783301,1704117068304,-500.0,0.00038356,2]
[309783302,1704117068314,-543.03,0.00038356,2]
[309783303,1704117068323,-500.0,0.00038356,2]
[309783304,1704117068332,-752.72,0.00038356,2]
[309783305,1704117068342,-500.0,0.00038356,2]
[309783306,1704117068351,-500.0,0.00038356,2]
[309783307,1704117068361,-500.0,0.00038356,2]
[309783308,1704117068371,-500.0,0.00038356,2]
[309783309,1704117068381,-500.0,0.00038356,2]
[309783310,1704117068389,-500.0,0.00038356,2]
[309783311,1704117068399,-732.99,0.00038356,2]
[309783312,1704117068408,-500.0,0.00038356,2]
[309783313,1704117068418,-500.0,0.00038356,2]
[309783314,1704117068427,-320.82,0.00038356,2]
[309783315,1704117068436,-1348.23,0.00038356,2]
[309783316,1704117068446,-500.0,0.00038356,5]
[309783317,1704117068455,-500.0,0.00038356,2]
[309783318,1704117068465,-500.0,0.00038356,2]
[309783319,1704117068474,-500.0,0.00038356,2]
[309783320,1704117068483,-500.0,0.00038356,2]
[309783321,1704117068493,-500.0,0.00038356,2]
[309783322,1704117068502,-1292.27,0.00038356,2]
[309783323,1704117068512,-518.93,0.00038356,2]
[309783324,1704117068521,-500.0,0.00038356,2]
[309783325,1704117068531,-500.0,0.00038356,2]
[309783326,1704117068541,-1110.370303,0.00038374,3]
[309783327,1704117068550,-333.33333,0.00038398,8]
[309783328,1704117068560,-8000.0,0.000384,2]
[309783329,1704117068570,-45101.88469781,0.0003844,4]
[309783330,1704117068579,-150.0,0.00038484,2]
[309783331,1704117068588,-333.33333,0.00038498,8]
[309783332,1704117068598,-1500.0,0.00038499,2]
[309783333,1704117068608,-635.72,0.0003851,2]
[309783334,1704117068617,-229.224196,0.00038572,2]
[309783335,1704117068627,-524.258077,0.00038572,2]
[309783336,1704117068637,-150.0,0.00038581,2]
[309783337,1704117068646,-333.33333,0.00038598,8]
[309783338,1704117068655,-153.21135159,0.00038627,29]
[309783339,1704117068665,-500.0,0.0003863,2]
[309783340,1704117068674,-500.0,0.0003863,2]
[309783341,1704117068683,-763.87,0.0003863,2]
[309783342,1704117068693,-638.97,0.0003863,2]
[309783343,1704117068703,-460.97,0.0003863,2]
[309783344,1704117068713,-1870.25,0.0003863,2]
[309783345,1704117068723,-500.0,0.0003863,2]
[309783346,1704117068732,-500.0,0.0003863,2]
[309783347,1704117068841,-500.0,0.0003863,2]
[309783348,1704117068851,-500.0,0.0003863,2]
[309783349,1704117068862,-500.0,0.0003863,2]
[309783350,1704117068876,-543.03,0.0003863,2]
[309783351,1704117068887,-752.72,0.0003863,2]
[309783352,1704117068897,-500.0,0.0003863,2]
[309783353,1704117068914,-500.0,0.0003863,2]
[309783354,1704117068924,-246.87,0.0003863,2]
[309783355,1704117068937,-334.16,0.0003863,2]
[309783356,1704117068948,-165.16,0.0003863,2]
[309783357,1704117068958,-500.0,0.0003863,2]
[309783358,1704117068968,-732.99,0.0003863,2]
[309783359,1704117068982,-500.0,0.0003863,2]
[309783360,1704117068993,-500.0,0.0003863,2]
[309783361,1704117069003,-1348.23,0.0003863,2]
[309783362,1704117069012,-500.0,0.0003863,5]
[309783363,1704117069022,-160.3,0.0003863,2]
[309783364,1704117069032,-500.0,0.0003863,2]
[309783365,1704117069048,-500.0,0.0003863,2]
[309783366,1704117069057,-500.0,0.0003863,2]
[309783367,1704117069067,-500.0,0.0003863,2]
[309783368,1704117069076,-1292.27,0.0003863,2]
[309783369,1704117069085,-518.93,0.0003863,2]
[309783370,1704117069095,-500.0,0.0003863,2]
[309783371,1704117069105,-500.0,0.0003863,2]
[309783372,1704117069117,-150.0,0.00038641,7]
[309783373,1704117069127,-150.0,0.00038675,2]
[309783374,1704117069136,-150.0,0.0003868,2]
[309783375,1704117069147,-150.0,0.00038682,2]
[309783376,1704117069156,-708.0,0.00038685,2]
[309783377,1704117069176,-333.33333,0.00038698,8]
[309783378,1704117069185,-3000.0,0.0003872,2]
[309783379,1704117069203,-470.98,0.00038733,2]
[309783380,1704117069215,-169.16,0.00038775,2]
[309783381,1704117069224,-150.0,0.00038779,2]
[309783382,1704117069233,-333.33333,0.00038798,8]
[309783383,1704117069243,-156.84,0.000388,3]
[309783384,1704117069252,-156.84,0.000388,3]
[309783385,1704117069277,-156.84,0.000388,3]
[309783386,1704117069287,-150.0,0.00038824,2]
[309783387,1704117069298,-150.0,0.00038825,2]
[309783388,1704117069307,-150.0,0.00038825,2]
[309783389,1704117069317,-150.0,0.00038834,2]
[309783390,1704117069327,-150.0,0.00038835,2]
[309783391,1704117069337,-529.02,0.00038851,2]
[309783392,1704117069347,-150.0,0.00038866,2]
[309783393,1704117069357,-5132.56283437,0.00038871,12]
[309783394,1704117069378,-150.0,0.00038883,2]
[309783395,1704117069388,-1500.0,0.00038893,2]
[309783396,1704117069397,-333.33333,0.00038898,8]
[309783397,1704117069409,-5543917.66040621,0.000389,6]
[309783398,1704117069419,-679.521385,0.000389,28]
[309783399,1704117069428,-500.0,0.00038904,2]
[309783400,1704117069438,-500.0,0.00038904,2]
[309783401,1704117069447,-763.87,0.00038904,2]
[309783402,1704117069457,-638.97,0.00038904,2]
[309783403,1704117069468,-1870.25,0.00038904,2]
[309783404,1704117069477,-601.40728296,0.00038904,2]
[309783405,1704117069487,-257.39,0.00038904,2]
[309783406,1704117069497,-500.0,0.00038904,2]
[309783407,1704117069506,-500.0,0.00038904,2]
[309783408,1704117069515,-500.0,0.00038904,2]
[309783409,1704117069526,-543.03,0.00038904,2]
[309783410,1704117069535,-752.72,0.00038904,2]
[309783411,1704117069545,-500.0,0.00038904,2]
[309783412,1704117069555,-500.0,0.00038904,2]
[309783413,1704117069567,-202.28,0.00038904,2]
[309783414,1704117069578,-732.99,0.00038904,2]
[309783415,1704117069587,-500.0,0.00038904,2]
[309783416,1704117069598,-500.0,0.00038904,2]
[309783417,1704117069608,-1348.23,0.00038904,2]
[309783418,1704117069618,-445.32,0.00038904,5]
[309783419,1704117069627,-500.0,0.00038904,2]
[309783420,1704117069644,-500.0,0.00038904,2]
[309783421,1704117069654,-500.0,0.00038904,2]
[309783422,1704117069673,-500.0,0.00038904,2]
[309783423,1704117069683,-1292.27,0.00038904,2]
[309783424,1704117069693,-518.93,0.00038904,2]
[309783425,1704117069702,-500.0,0.00038904,2]
[309783426,1704117069713,-500.0,0.00038904,2]
[309783427,1704117069723,-150.0,0.0003893,2]
[309783428,1704117069734,-150.0,0.00038938,2]
[309783429,1704117069744,-150.0,0.00038953,2]
[309783430,1704117069754,-150.0,0.00038958,2]
[309783431,1704117069765,-11945.81411519,0.00038961,4]
[309783432,1704117069775,-150.0,0.00038997,2]
[309783433,1704117069785,-333.33333,0.00038998,8]
[309783434,1704117069795,-803.32689359,0.00039,4]
[309783435,1704117069805,-6859.43840228,0.00039,4]
[309783436,1704117069815,-5000.0,0.00039,20]
[309783437,1704117069825,-21580.14,0.00039,4]
[309783438,1704117069834,-16595.8530963,0.00039,7]
[309783439,1704117069844,-750.0,0.00039,3]
[309783440,1704117069853,-906.42749427,0.00039,2]
[309783441,1704117069862,-906.42749427,0.00039,2]
[309783442,1704117069881,-371.55,0.00039,2]
[309783443,1704117069891,-150.0,0.00039011,2]
[309783444,1704117069901,-150.0,0.00039026,2]
[309783445,1704117069910,-150.0,0.00039035,2]
[309783446,1704117069920,-229.224196,0.00039049,2]
[309783447,1704117069930,-524.258077,0.00039049,2]
[309783448,1704117069939,-200.0,0.0003905,2]
[309783449,1704117069949,-150.0,0.00039058,2]
[309783450,1704117069958,-150.0,0.00039063,2]
[309783451,1704117069968,-187.76406769,0.00039074,2]
[309783452,1704117069977,-150.0,0.00039081,2]
[309783453,1704117069987,-150.0,0.00039081,2]
[309783454,1704117069998,-333.33333,0.00039098,8]
[309783455,1704117070007,-3000.0,0.000391,16]
[309783456,1704117070017,-153.92,0.00039103,2]
[309783457,1704117070027,-3000.0,0.0003911,16]
[309783458,1704117070037,-3000.0,0.0003912,16]
[309783459,1704117070046,-3000.0,0.0003913,16]
[309783460,1704117070056,-5938.805666,0.0003914,16]
[309783461,1704117070065,-1000.0,0.00039142,2]
[309783462,1704117070075,-1493.16573031,0.00039143,2]
[309783463,1704117070085,-10319.58506941,0.00039143,2]
[309783464,1704117070096,-372.35873696,0.00039143,5]
[309783465,1704117070105,-6644.37,0.00039151,3]
[309783466,1704117070115,-527.94272105,0.00039155,4]
[309783467,1704117070131,-2000.0,0.00039157,2]
[309783468,1704117070140,-200.0,0.00039157,2]
[309783469,1704117070150,-175.17341042,0.00039157,2]
[309783470,1704117070159,-150.0,0.00039159,2]
[309783471,1704117070169,-500.0,0.0003917,2]
[309783472,1704117070179,-500.0,0.0003917,2]
[309783473,1704117070189,-500.0,0.0003917,2]
[309783474,1704117070209,-500.48115029,0.0003917,2]
[309783475,1704117070218,-5000.0,0.00039174,10]
[309783476,1704117070228,-5000.0,0.00039174,10]
[309783477,1704117070237,-1968.06946982,0.00039174,2]
[309783478,1704117070248,-767.09864501,0.00039174,2]
[309783479,1704117070258,-314.71978188,0.00039178,2]
[309783480,1704117070267,-608.91839146,0.00039178,2]
[309783481,1704117070278,-763.87,0.00039178,2]
[309783482,1704117070288,-638.97,0.00039178,2]
[309783483,1704117070298,-1870.25,0.00039178,2]
[309783484,1704117070307,-500.0,0.00039178,2]
[309783485,1704117070317,-500.0,0.00039178,2]
[309783486,1704117070327,-500.0,0.00039178,2]
[309783487,1704117070337,-543.03,0.00039178,2]
[309783488,1704117070347,-752.72,0.00039178,2]
[309783489,1704117070356,-500.0,0.00039178,2]
[309783490,1704117070366,-500.0,0.00039178,2]
[309783491,1704117070376,-732.99,0.00039178,2]
[309783492,1704117070385,-500.0,0.00039178,2]
[309783493,1704117070396,-500.0,0.00039178,2]
[309783494,1704117070406,-1348.23,0.00039178,2]
[309783495,1704117070416,-500.0,0.00039178,2]
[309783496,1704117070426,-500.0,0.00039178,2]
[309783497,1704117070437,-500.0,0.00039178,2]
[309783498,1704117070447,-500.0,0.00039178,2]
[309783499,1704117070456,-1292.27,0.00039178,2]
[309783500,1704117070467,-518.93,0.00039178,2]
[309783501,1704117070477,-500.0,0.00039178,2]
[309783502,1704117070487,-500.0,0.00039178,2]
[309783503,1704117070497,-4036.62,0.00039178,2]
[309783504,1704117070508,-973.18977968,0.00039195,4]
[309783505,1704117070518,-1500.0,0.00039196,2]
[309783506,1704117070529,-333.33333,0.00039198,8]
[309783507,1704117070538,-1107.57494363,0.000392,3]
[309783508,1704117070549,-1102.0,0.000392,7]
[309783509,1704117070560,-150.0,0.00039219,2]
[309783510,1704117070570,-150.0,0.00039222,2]
[309783511,1704117070580,-150.0,0.00039226,2]
[309783512,1704117070589,-150.0,0.00039235,2]
[309783513,1704117070599,-1500.0,0.00039242,2]
[309783514,1704117070609,-150.0,0.00039256,2]
[309783515,1704117070618,-150.0,0.00039265,2]
[309783516,1704117070628,-150.0,0.00039279,2]
[309783517,1704117070637,-150.0,0.00039286,2]
[309783518,1704117070646,-150.0,0.00039296,2]
[309783519,1704117070656,-333.33333,0.00039298,8]
[309783520,1704117070666,-150.0,0.00039298,2]
[309783521,1704117070675,-171.0,0.00039305,2]
[309783522,1704117070684,-155.0,0.00039324,4]
[309783523,1704117070694,-152.72342887,0.00039348,2]
[309783524,1704117070703,-150.0,0.00039359,2]
[309783525,1704117070712,-150.0,0.00039367,2]
[309783526,1704117070722,-150.0,0.00039378,2]
[309783527,1704117070731,-150.0,0.00039388,2]
[309783528,1704117070741,-150.0,0.00039393,2]
[309783529,1704117070751,-1500.0,0.00039395,2]
[309783530,1704117070760,-333.33333,0.00039398,8]
[309783531,1704117070769,-17315.07250605,0.000394,4]
[309783532,1704117070779,-150.0,0.00039403,2]
[309783533,1704117070789,-299.22691726,0.00039422,2]
[309783534,1704117070798,-406.8,0.00039427,2]
[309783535,1704117070808,-152.73838159,0.0003944,2]
[309783536,1704117070817,-150.0,0.00039449,2]
[309783537,1704117070826,-763.87,0.00039452,2]
[309783538,1704117070836,-638.97,0.00039452,2]
[309783539,1704117070846,-1870.25,0.00039452,2]
[309783540,1704117070856,-500.0,0.00039452,2]
[309783541,1704117070865,-500.0,0.00039452,2]
[309783542,1704117070875,-500.0,0.00039452,2]
[309783543,1704117070980,-543.03,0.00039452,2]
[309783544,1704117070990,-752.72,0.00039452,2]
[309783545,1704117071000,-500.0,0.00039452,2]
[309783546,1704117071009,-500.0,0.00039452,2]
[309783547,1704117071019,-732.99,0.00039452,2]
[309783548,1704117071029,-500.0,0.00039452,2]
[309783549,1704117071038,-1348.23,0.00039452,2]
[309783550,1704117071048,-500.0,0.00039452,2]
[309783551,1704117071058,-500.0,0.00039452,2]
[309783552,1704117071067,-500.0,0.00039452,2]
[309783553,1704117071077,-278.87,0.00039452,2]
[309783554,1704117071087,-1292.27,0.00039452,2]
[309783555,1704117071096,-518.93,0.00039452,2]
[309783556,1704117071106,-426.59,0.00039452,2]
[309783557,1704117071116,-254.10882479,0.00039452,2]
[309783558,1704117071125,-150.0,0.00039478,2]
[309783559,1704117071135,-635.72,0.00039488,2]
[309783560,1704117071144,-150.0,0.00039491,2]
[309783561,1704117071153,-333.33333,0.00039498,8]
[309783562,1704117071163,-1407.15,0.00039499,2]
[309783563,1704117071173,-1719.85,0.00039499,2]
[309783564,1704117071183,-167.0,0.000395,2]
[309783565,1704117071192,-571742.0,0.000395,2]
[309783566,1704117071201,-1000.0,0.000395,2]
[309783567,1704117071211,-150.0,0.00039509,2]
[309783568,1704117071220,-157.94690267,0.00039522,4]
[309783569,1704117071229,-157.74007591,0.00039522,4]
[309783570,1704117071238,-275.84865929,0.00039522,4]
[309783571,1704117071247,-165.88774594,0.00039522,4]
[309783572,1704117071257,-304.32590035,0.00039522,4]
[309783573,1704117071266,-171.52741805,0.00039522,4]
[309783574,1704117071275,-160.7759841,0.00039522,4]
[309783575,1704117071284,-332.24070912,0.00039522,4]
[309783576,1704117071293,-244.24832671,0.00039522,4]
[309783577,1704117071302,-181.81200294,0.00039522,4]
[309783578,1704117071312,-192.73494224,0.00039522,4]
[309783579,1704117071321,-186.45609118,0.00039522,4]
[309783580,1704117071330,-573.92678319,0.00039522,4]
[309783581,1704117071339,-155.0,0.00039522,4]
[309783582,1704117071348,-283.37850648,0.00039522,10]
[309783583,1704117071358,-157.34567713,0.00039522,4]
[309783584,1704117071367,-156.83285728,0.00039522,4]
[309783585,1704117071377,-201.11715598,0.00039522,4]
[309783586,1704117071386,-3018.08108035,0.00039523,4]
[309783587,1704117071395,-156.3401269,0.00039523,4]
[309783588,1704117071404,-251.42144123,0.00039523,4]
[309783589,1704117071413,-159.22032269,0.00039523,4]
[309783590,1704117071423,-214.08376804,0.00039523,4]
[309783591,1704117071433,-5293.3460538,0.00039523,4]
[309783592,1704117071442,-235.96282679,0.00039523,4]
[309783593,1704117071452,-1500.0,0.00039523,2]
[309783594,1704117071461,-53976.4938608,0.00039524,4]
[309783595,1704117071471,-158.19423441,0.00039524,4]
[309783596,1704117071480,-229.224196,0.00039525,2]
[309783597,1704117071490,-524.258077,0.00039525,2]
[309783598,1704117071499,-4886.00728927,0.00039525,2]
[309783599,1704117071508,-16086.99247589,0.00039525,2]
[309783600,1704117071518,-4094.24961843,0.00039525,2]
[309783601,1704117071527,-150.0,0.00039538,2]
[309783602,1704117071536,-2000.0,0.00039549,2]
[309783603,1704117071546,-200.0,0.00039549,2]
[309783604,1704117071556,-150.0,0.00039562,2]
[309783605,1704117071566,-150.0,0.00039578,2]
[309783606,1704117071576,-1500.0,0.00039583,2]
[309783607,1704117071586,-386.0,0.00039595,2]
[309783608,1704117071596,-940.0,0.00039595,2]
[309783609,1704117071606,-1841.0,0.00039595,2]
[309783610,1704117071618,-1254.0,0.00039595,2]
[309783611,1704117071627,-801.146,0.00039595,2]
[309783612,1704117071637,-1137.0,0.00039595,2]
[309783613,1704117071646,-317.0,0.00039595,2]
[309783614,1704117071656,-505.0,0.00039595,2]
[309783615,1704117071666,-749.0,0.00039595,2]
[309783616,1704117071676,-150.0,0.00039595,2]
[309783617,1704117071685,-2259.0,0.00039595,2]
[309783618,1704117071696,-2892.0,0.00039595,2]
[309783619,1704117071705,-5536.0,0.00039595,2]
[309783620,1704117071715,-4173.0,0.00039595,2]
[309783621,1704117071724,-150.0,0.00039595,2]
[309783622,1704117071734,-333.33333,0.00039598,8]
[309783623,1704117071744,-150.0,0.000396,2]
[309783624,1704117071754,-150.0,0.000396,2]
[309783625,1704117071763,-150.0,0.000396,2]
[309783626,1704117071774,-150.0,0.000396,2]
[309783627,1704117071784,-150.0,0.000396,2]
[309783628,1704117071793,-150.0,0.000396,2]
[309783629,1704117071803,-150.0,0.000396,2]
[309783630,1704117071814,-150.0,0.000396,2]
[309783631,1704117071825,-155.27188,0.000396,2]
[309783632,1704117071834,-150.0,0.00039614,2]
[309783633,1704117071845,-150.0,0.00039659,2]
[309783634,1704117071858,-150.0,0.00039673,2]
[309783635,1704117071868,-150.0,0.00039674,2]
[309783636,1704117071877,-1500.0,0.00039675,2]
[309783637,1704117071887,-150.0,0.00039691,2]
[309783638,1704117071896,-150.0,0.00039694,2]
[309783639,1704117071906,-333.33333,0.00039698,8]
[309783640,1704117071915,-8000.0,0.000397,2]
[309783641,1704117071925,-443.04,0.00039703,2]
[309783642,1704117071934,-150.0,0.00039722,2]
[309783643,1704117071945,-763.87,0.00039726,2]
[309783644,1704117071955,-638.97,0.00039726,2]
[309783645,1704117071965,-1870.25,0.00039726,2]
[309783646,1704117071975,-500.0,0.00039726,2]
[309783647,1704117071985,-500.0,0.00039726,2]
[309783648,1704117071994,-500.0,0.00039726,2]
[309783649,1704117072005,-543.03,0.00039726,2]
[309783650,1704117072014,-752.72,0.00039726,2]
[309783651,1704117072024,-500.0,0.00039726,2]
[309783652,1704117072034,-500.0,0.00039726,2]
[309783653,1704117072044,-732.99,0.00039726,2]
[309783654,1704117072054,-246.87,0.00039726,2]
[309783655,1704117072064,-1348.23,0.00039726,2]
[309783656,1704117072074,-500.0,0.00039726,2]
[309783657,1704117072083,-500.0,0.00039726,2]
[309783658,1704117072093,-500.0,0.00039726,2]
[309783659,1704117072105,-1292.27,0.00039726,2]
[309783660,1704117072115,-518.93,0.00039726,2]
[309783661,1704117072124,-22252.85498201,0.0003977,5]
[309783662,1704117072134,-1577.41831992,0.00039775,2]
[309783663,1704117072145,-150.0,0.00039778,2]
[309783664,1704117072156,-150.0,0.00039797,2]
[309783665,1704117072166,-333.33333,0.00039798,8]
[309783666,1704117072177,-979.92104949,0.000398,4]
[309783667,1704117072187,-22396.0,0.000398,14]
[309783668,1704117072197,-150.0,0.00039813,2]
[309783669,1704117072206,-150.0,0.00039818,2]
[309783670,1704117072216,-150.0,0.00039838,2]
[309783671,1704117072226,-150.0,0.00039846,2]
[309783672,1704117072237,-150.0,0.00039857,2]
[309783673,1704117072247,-500.0,0.00039867,4]
[309783674,1704117072256,-150.0,0.00039868,2]
[309783675,1704117072266,-300.0,0.0003987,2]
[309783676,1704117072275,-150.0,0.00039874,2]
[309783677,1704117072285,-500.0,0.00039876,4]
[309783678,1704117072295,-150.0,0.00039883,2]
[309783679,1704117072304,-150.0,0.00039885,2]
[309783680,1704117072314,-500.0,0.00039885,4]
[309783681,1704117072323,-150.0,0.00039893,2]
[309783682,1704117072332,-500.0,0.00039894,4]
[309783683,1704117072342,-333.33333,0.00039898,8]
[309783684,1704117072354,-501.33562416,0.000399,2]
[309783685,1704117072364,-501.33562406,0.000399,2]
[309783686,1704117072373,-501.33562406,0.000399,2]
[309783687,1704117072383,-501.33562406,0.000399,2]
[309783688,1704117072392,-501.33562406,0.000399,2]
[309783689,1704117072402,-501.33562406,0.000399,2]
[309783690,1704117072411,-501.33562406,0.000399,2]
[309783691,1704117072421,-501.33562406,0.000399,2]
[309783692,1704117072430,-500.0,0.00039903,4]
[309783693,1704117072439,-153.21135159,0.00039903,31]